bitfinex/quotes_ETHUSD_20250711
["timestamp","ask_amount","ask_price","bid_price","bid_amount"]
[1752214191089,41.63087526,3016.2,3016.1,10.1656]
[1752214192481,38.2201759,3016.2,3016.1,10.1656]
[1752214193181,39.3301759,3016.2,3016.1,10.1656]
[1752214195616,40.4401759,3016.2,3016.1,10.1656]
[1752214197898,41.5501759,3016.2,3016.1,10.1656]
[1752214199318,41.5501759,3016.2,3016.1,18.1126]
[1752214200182,42.6601759,3016.2,3016.1,18.1126]
[1752214200583,43.76518322,3016.2,3016.1,7.947]
[1752214200984,42.6601759,3016.2,3016.1,7.947]
[1752214201421,42.6601759,3016.2,3016.1,18.511]
[1752214201626,50.09437935,3016.2,3016.1,18.511]
[1752214201833,52.31037935,3016.2,3016.1,10.563]
[1752214202419,53.61857935,3016.2,3016.1,10.563]
[1752214202619,54.65627871,3016.2,3016.1,10.563]
[1752214202841,47.77207526,3016.2,3016.1,10.563]
[1752214203020,54.65627871,3016.2,3016.1,10.563]
[1752214203602,58.13927871,3016.2,3016.1,10.563]
[1752214205138,59.24927871,3016.2,3016.1,10.563]
[1752214205500,48.88207526,3016.2,3016.1,10.563]
[1752214205701,52.36507526,3016.2,3016.1,10.563]
[1752214205906,48.88207526,3016.2,3016.1,10.563]
[1752214206252,48.33207526,3016.2,3016.1,10.563]
[1752214206609,51.81507526,3016.2,3015.8,0.002]
[1752214206825,0.55,3015.6,3015.0,7.947]
[1752214207152,1.2427,3015.1,3015.0,7.947]
[1752214207347,2.3527,3015.1,3015.0,7.947]
[1752214207944,2.3527,3015.1,3015.0,18.507]
[1752214209923,3.4627,3015.1,3015.0,18.507]
[1752214210125,3.80897,3015.1,3015.0,18.507]
[1752214211360,4.35897,3015.1,3015.0,18.507]
[1752214211658,14.99452288,3015.1,3015.0,10.559]
[1752214211883,14.99452288,3015.1,3013.9,0.002]
[1752214211884,3.483,3014.6,3013.9,0.002]
[1752214212075,0.55,3014.2,3013.9,0.002]
[1752214212356,1.93512,3014.1,3014.0,5.279]
[1752214212559,0.55,3013.8,3012.6,7.95]
[1752214212725,1.8256,3013.6,3012.6,7.95]
[1752214212929,1.6,3013.7,3012.7,5.279]
[1752214212930,0.55,3013.4,3012.7,5.279]
[1752214213130,1.2756,3013.1,3011.5,0.002]
[1752214213326,0.55,3013.2,3009.1,7.3794832]
[1752214213327,0.18256,3013.0,3009.1,7.3794832]
[1752214213626,0.18256,3013.0,3005.6,0.002]
[1752214213627,3.483,3008.9,3006.9,11.66117161]
[1752214213826,10.0,3010.1,3006.9,11.66117161]
[1752214213827,0.5,3010.3,3007.0,1.3291]
[1752214214026,10.0,3009.9,3007.1,5.048847]
[1752214214257,2.06355529,3009.8,3007.0,1.3291]
[1752214214465,10.63555288,3008.9,3007.2,2.10208705]
[1752214214635,10.0,3008.8,3007.0,1.09075441]
[1752214214834,10.0,3008.8,3007.1,11.17425463]
[1752214215044,1.27915258,3008.7,3007.2,11.141]
[1752214215260,10.63555288,3008.4,3007.2,11.141]
[1752214215447,0.03325258,3008.3,3007.2,11.141]
[1752214216365,0.03325258,3008.3,3007.3,11.13]
[1752214216955,1.12791526,3008.6,3007.3,11.13]
[1752214217139,0.73043863,3008.5,3007.4,10.0]
[1752214217340,1.11,3008.3,3007.4,10.0]
[1752214217559,0.03325258,3008.2,3007.4,10.0]
[1752214218840,1.11,3008.3,3007.4,10.0]
[1752214219376,0.03325258,3008.2,3007.4,10.0]
[1752214221892,0.03325258,3008.2,3007.8,0.1656]
[1752214222102,1.14325258,3008.2,3007.9,11.127]
[1752214222272,2.83323784,3008.2,3007.9,11.127]
[1752214222474,0.1656,3008.1,3007.9,11.127]
[1752214222681,0.03325258,3008.0,3007.9,11.127]
[1752214223670,0.03325258,3008.1,3007.9,11.127]
[1752214224565,1.14325258,3008.1,3007.9,11.127]
[1752214224770,0.39432378,3008.0,3007.9,11.127]
[1752214226987,1.50432378,3008.0,3007.9,11.127]
[1752214227599,1.11,3008.0,3007.9,11.127]
[1752214228299,1.11,3008.0,3006.7,9.1762]
[1752214228300,0.55,3007.9,3007.8,11.084]
[1752214228499,11.89195258,3007.9,3007.8,11.084]
[1752214228700,11.8587,3007.9,3007.8,11.084]
[1752214228905,0.01729,3007.8,3007.6,11.088]
[1752214229084,0.58325258,3007.7,3007.6,11.088]
[1752214229280,1.3655,3007.4,3007.3,11.085]
[1752214229481,1.9155,3007.4,3007.3,11.085]
[1752214229800,1.9155,3007.4,3005.9,7.968]
[1752214229801,0.55,3007.3,3005.9,7.968]
[1752214230003,0.55,3006.9,3005.9,7.968]
[1752214230179,1.4174,3007.0,3005.9,7.968]
[1752214230180,0.55,3006.7,3005.9,7.968]
[1752214230377,0.03325258,3006.6,3005.9,7.968]
[1752214230990,0.03325258,3006.6,3006.0,11.091]
[1752214231387,0.58325258,3006.9,3006.0,11.091]
[1752214231687,0.55,3006.7,3006.0,11.091]
[1752214231889,0.20006526,3006.8,3006.0,11.091]
[1752214232083,1.11,3006.9,3006.1,10.0]
[1752214232387,0.03325258,3006.8,3006.3,10.0]
[1752214232593,0.03325258,3006.8,3006.5,10.0]
[1752214232909,0.03325258,3006.8,3006.7,0.1656]
[1752214233880,0.03325258,3006.8,3006.6,11.093]
[1752214234413,1.11,3006.8,3006.6,11.093]
[1752214234910,1.14325258,3006.8,3006.6,11.093]
[1752214235082,1.38513784,3006.8,3006.6,11.093]
[1752214235284,0.1656,3006.6,3006.1,0.1656]
[1752214235481,0.03325258,3006.5,3006.2,5.541]
[1752214235716,0.03325258,3006.5,3006.3,11.084]
[1752214235882,0.03325258,3006.7,3006.3,11.084]
[1752214236935,1.14325258,3006.7,3006.3,11.084]
[1752214237301,1.11,3006.7,3006.3,11.084]
[1752214238704,0.03325258,3006.6,3006.4,10.0]
[1752214238900,0.03325258,3006.6,3006.5,11.07]
[1752214239234,1.11,3006.7,3006.6,12.03716016]
[1752214239396,1.11,3006.7,3006.6,11.4539]
[1752214241454,1.11,3006.7,3006.6,6.9879]
[1752214241804,2.22,3006.7,3006.6,6.9879]
[1752214244107,3.33,3006.7,3006.6,6.9879]
[1752214245653,3.33,3006.7,3006.6,7.1535]
[1752214246537,4.44,3006.7,3006.6,7.1375]
[1752214247286,4.44,3006.7,3006.6,7.1345]
[1752214247487,4.44,3006.7,3006.6,1.6195]
[1752214247780,4.47325258,3006.7,3006.6,5.6806]
[1752214248091,4.13797157,3006.7,3006.6,5.6806]
[1752214248803,4.10471899,3006.7,3006.6,5.6806]
[1752214248964,5.21471899,3006.7,3006.6,5.6806]
[1752214249989,5.21471899,3006.7,3006.6,15.6696]
[1752214251384,6.32471899,3006.7,3006.6,15.6696]
[1752214252256,7.72161899,3006.7,3006.6,5.6656]
[1752214252689,8.71578089,3006.7,3006.6,0.1656]
[1752214252890,8.71578089,3006.7,3006.6,5.6626]
[1752214253395,8.71578089,3006.7,3006.6,5.6616]
[1752214253589,7.72161899,3006.7,3006.6,5.6616]
[1752214253759,8.83161899,3006.7,3006.6,5.6616]
[1752214253962,8.83161899,3006.7,3006.6,5.6606]
[1752214254149,8.83161899,3006.7,3005.9,7.968]
[1752214254354,0.03325258,3006.6,3006.2,0.1656]
[1752214254556,0.90304716,3006.5,3006.3,5.491]
[1752214254756,0.03325258,3006.4,3006.3,5.491]
[1752214254978,0.03325258,3006.4,3006.3,10.0]
[1752214255190,0.03325258,3006.4,3006.3,15.491]
[1752214255387,0.03325258,3006.4,3006.3,10.0]
[1752214255589,0.03325258,3006.4,3006.3,15.489]
[1752214255757,0.03325258,3006.4,3006.2,0.1656]
[1752214255962,0.03325258,3006.4,3005.9,7.968]
[1752214256180,1.4831,3006.2,3005.9,7.968]
[1752214256382,0.23656258,3006.1,3005.6,0.002]
[1752214256786,1.4146,3006.0,3005.7,5.487]
[1752214257057,0.03325258,3005.9,3005.7,5.487]
[1752214258559,0.55,3005.8,3005.6,0.002]
[1752214258761,1.99785258,3005.7,3005.6,0.002]
[1752214259061,2.71268726,3005.7,3005.6,0.002]
[1752214259266,1.99785258,3005.7,3005.6,0.002]
[1752214259508,2.71188683,3005.7,3005.6,0.002]
[1752214260315,1.4146,3005.5,3004.9,0.002]
[1752214260482,1.4146,3005.3,3004.9,0.002]
[1752214260686,0.58325258,3005.2,3004.9,0.002]
[1752214260884,1.9646,3005.0,3004.9,0.002]
[1752214261082,0.58325258,3005.0,3004.4,0.002]
[1752214261314,9.98390129,3004.5,3004.4,0.002]
[1752214261627,10.98229142,3004.5,3004.4,0.002]
[1752214261783,16.47029142,3004.5,3004.4,0.002]
[1752214262237,1.4938,3004.2,3002.6,7.973]
[1752214262526,1.4938,3003.8,3002.7,5.487]
[1752214262692,0.55,3003.4,3002.6,7.973]
[1752214262893,0.55,3003.2,3002.6,7.973]
[1752214263122,0.55,3002.9,3002.3,0.002]
[1752214263309,0.03325258,3002.8,3002.3,0.002]
[1752214263492,3.0802,3003.2,3002.3,5.495]
[1752214263693,0.03325258,3003.1,3002.3,5.495]
[1752214263898,0.31134526,3003.0,3001.8,0.002]
[1752214264095,0.58325258,3002.9,3001.8,0.002]
[1752214264397,0.55,3002.7,3001.9,5.505]
[1752214264721,1.419,3002.8,3001.9,5.505]
[1752214264923,0.03325258,3002.7,3001.9,5.505]
[1752214265092,0.03325258,3002.7,3002.0,10.0]
[1752214265419,0.03325258,3002.7,3001.8,0.002]
[1752214265619,0.03325258,3002.7,3002.3,5.513]
[1752214265920,0.03325258,3002.7,3002.6,0.1664]
[1752214266139,1.11,3002.7,3002.6,0.1664]
[1752214266287,1.11,3002.7,3002.6,0.7164]
[1752214266485,1.11,3002.7,3002.6,2.0867]
[1752214266687,1.11,3002.7,3002.6,2.20272863]
[1752214266931,1.05787689,3002.7,3002.6,2.20272863]
[1752214267224,1.11,3005.3,3003.1,10.55]
[1752214267225,1.3741,3005.2,3003.1,10.55]
[1752214267533,0.03325258,3005.1,3003.4,1.2773]
[1752214267829,0.03325258,3005.1,3003.5,0.55]
[1752214268337,0.03325258,3005.1,3003.4,1.2773]
[1752214268619,1.14325258,3005.1,3003.4,1.2773]
[1752214268783,1.14325258,3005.1,3003.6,10.0]
[1752214269614,0.55,3004.9,3003.8,10.0]
[1752214269917,0.03325258,3004.8,3003.8,10.0]
[1752214270422,0.55,3004.5,3003.7,11.039]
[1752214270586,0.03325258,3004.4,3003.7,11.039]
[1752214270787,0.20426526,3004.4,3003.7,11.039]
[1752214270989,1.14325258,3004.4,3003.8,10.0]
[1752214272031,12.0094,3004.3,3003.7,11.029]
[1752214272249,0.55,3004.1,3003.7,11.029]
[1752214272444,1.4594,3004.2,3003.7,11.029]
[1752214272445,0.03325258,3004.0,3003.7,11.029]
[1752214273401,1.11,3004.0,3003.7,11.029]
[1752214273624,0.03325258,3003.9,3003.7,11.029]
[1752214274445,1.14325258,3004.0,3003.7,11.029]
[1752214274743,1.11,3004.0,3003.8,10.0]
[1752214275933,1.11,3004.0,3003.2,7.979]
[1752214275934,3.7047,3004.0,3003.9,11.035]
[1752214276228,4.07517,3004.0,3003.9,11.035]
[1752214276792,3.7047,3004.0,3003.9,11.035]
[1752214277031,2.22,3004.0,3003.9,21.035]
[1752214277338,2.10739394,3004.0,3003.9,23.5072625]
[1752214277507,2.10739394,3004.0,3003.9,23.0287]
[1752214277696,1.11,3004.4,3004.3,1.4437]
[1752214277896,1.11,3004.4,3004.3,23.0377]
[1752214278096,1.11,3004.4,3004.3,21.7604]
[1752214278427,2.22,3004.4,3004.3,23.2179]
[1752214278998,2.22,3004.4,3004.3,31.71576379]
[1752214279628,1.11,3005.1,3004.5,1.4316]
[1752214279823,1.11,3005.1,3004.7,0.55]
[1752214280033,1.11,3005.1,3005.0,0.1656]
[1752214280198,1.11,3005.1,3005.0,21.1956]
[1752214280399,1.11,3005.1,3005.0,23.1435]
[1752214280946,2.22,3005.1,3005.0,23.6220625]
[1752214281150,2.22,3005.1,3005.0,23.1435]
[1752214282208,2.22,3005.1,3005.0,22.5935]
[1752214283123,3.33,3005.1,3005.0,22.84797296]
[1752214284249,3.33,3005.1,3005.0,11.03]
[1752214285641,4.44,3005.1,3005.0,11.03]
[1752214286242,4.44,3005.1,3005.0,10.996]
[1752214287922,5.55,3005.1,3005.0,10.996]
[1752214288244,7.49445187,3005.1,3005.0,10.996]
[1752214290143,8.04445187,3005.1,3005.0,10.996]
[1752214290339,9.15445187,3005.1,3005.0,10.996]
[1752214291537,8.1664,3005.1,3005.0,10.996]
[1752214291706,8.1664,3005.1,3005.0,10.97]
[1752214292521,8.1674,3005.1,3005.0,10.97]
[1752214292718,9.8274,3005.1,3005.0,10.97]
[1752214295215,10.3874,3005.1,3005.0,10.97]
[1752214295417,8.881,3005.1,3005.0,10.97]
[1752214296636,9.8801,3005.1,3005.0,10.97]
[1752214297964,10.9901,3005.1,3005.0,10.97]
[1752214298343,9.991,3005.1,3005.0,20.97]
[1752214298513,9.991,3005.1,3005.0,21.1356]
[1752214300449,11.101,3005.1,3005.0,21.1356]
[1752214301957,11.101,3005.1,3005.0,11.1356]
[1752214302128,11.101,3005.1,3005.0,10.97]
[1752214302334,12.3221,3005.1,3005.0,10.97]
[1752214302830,13.4321,3005.1,3005.0,10.97]
[1752214303623,14.82,3005.1,3005.0,10.97]
[1752214303824,13.5989,3005.1,3005.0,10.97]
[1752214304626,13.5989,3005.1,3005.0,20.97]
[1752214304627,12.211,3005.1,3005.0,20.97]
[1752214304959,12.211,3005.1,3005.0,21.1356]
[1752214305327,13.321,3005.1,3005.0,21.1356]
[1752214306220,13.321,3005.1,3005.0,20.922]
[1752214306426,14.7641,3005.1,3005.0,20.922]
[1752214306858,13.321,3005.1,3005.0,20.922]
[1752214307672,14.431,3005.1,3005.0,20.922]
[1752214307835,14.431,3005.1,3005.0,21.0876]
[1752214308965,14.431,3005.1,3005.0,20.922]
[1752214310259,15.541,3005.1,3005.0,20.922]
[1752214310568,17.34783,3005.1,3005.0,10.922]
[1752214310778,17.89783,3005.1,3005.0,10.922]
[1752214310923,19.35943,3005.1,3005.0,10.922]
[1752214311536,1.5051,3004.9,3004.6,7.98]
[1752214311754,0.55,3004.5,3003.6,0.002]
[1752214311940,0.1664,3003.8,3003.7,10.884]
[1752214312143,0.1664,3003.8,3003.7,20.884]
[1752214312673,1.11,3003.8,3003.7,20.884]
[1752214312834,1.11,3003.8,3003.7,21.0504]
[1752214313139,1.11,3003.8,3003.7,22.5459]
[1752214313347,1.11,3003.8,3003.7,21.0504]
[1752214313738,2.5642,3003.8,3003.7,10.884]
[1752214313945,2.82062,3003.8,3003.7,10.884]
[1752214314149,1.11,3003.8,3003.7,10.884]
[1752214315053,2.22,3003.8,3003.7,10.884]
[1752214317438,3.33,3003.8,3003.7,10.884]
[1752214319973,4.44,3003.8,3003.7,10.884]
[1752214322485,5.55,3003.8,3003.7,20.884]
[1752214322692,5.55,3003.8,3003.7,10.884]
[1752214323701,5.55,3003.8,3003.7,11.0504]
[1752214324996,6.66,3003.8,3003.7,11.0504]
[1752214325703,6.66,3003.8,3003.7,22.5096]
[1752214326796,6.66,3003.8,3003.7,20.9994]
[1752214327504,7.77,3003.8,3003.7,20.9994]
[1752214329997,8.88,3003.8,3003.7,20.9994]
[1752214332293,9.99,3003.8,3003.7,20.9994]
[1752214332869,9.97335,3003.8,3003.7,20.9994]
[1752214334670,11.08335,3003.8,3003.7,20.9994]
[1752214337120,12.19335,3003.8,3003.7,20.9994]
[1752214337468,12.19335,3003.8,3003.7,20.833]
[1752214339172,1.4521,3005.0,3003.7,20.833]
[1752214339173,1.4521,3005.0,3003.7,32.08976215]
[1752214339378,0.001,3005.0,3003.9,1.4476]
[1752214339706,0.001,3005.0,3004.1,10.0]
[1752214339908,0.03425258,3005.0,3004.3,10.0]
[1752214340110,0.03425258,3005.0,3004.5,10.0]
[1752214340291,0.03425258,3005.0,3004.7,10.0]
[1752214340486,0.03425258,3005.0,3004.9,10.0]
[1752214341714,1.14425258,3005.0,3004.9,10.0]
[1752214343714,1.14425258,3005.0,3004.9,10.24420668]
[1752214344011,1.111,3005.0,3004.9,10.24420668]
[1752214344322,2.25425258,3005.0,3004.9,10.24420668]
[1752214344642,2.221,3005.0,3004.9,10.24420668]
[1752214344820,2.221,3005.0,3004.9,10.41561548]
[1752214346740,3.331,3005.0,3004.9,10.41561548]
[1752214347502,3.331,3005.0,3004.9,10.58121548]
[1752214348204,3.331,3005.0,3004.9,12.63741548]
[1752214349340,4.441,3005.0,3004.9,12.08741548]
[1752214349541,4.441,3005.0,3004.9,10.58121548]
[1752214350910,4.441,3005.0,3004.9,10.40980668]
[1752214351112,4.47425258,3005.0,3004.9,0.40980668]
[1752214351319,6.62343784,3005.0,3004.9,0.40980668]
[1752214351520,4.441,3005.0,3004.9,11.93310668]
[1752214351725,5.551,3005.0,3004.9,11.93310668]
[1752214354044,6.661,3005.0,3004.9,11.93310668]
[1752214354660,6.661,3005.0,3004.9,12.31750668]
[1752214354954,6.661,3005.0,3004.9,12.76606918]
[1752214355328,15.541,3005.1,3004.9,12.76606918]
[1752214355329,9.57311823,3005.1,3005.0,14.0651]
[1752214355647,1.11,3005.3,3005.2,1.987]
[1752214355951,1.11,3005.3,3005.2,34.85396215]
[1752214356114,1.11,3005.3,3005.2,38.09100615]
[1752214356419,2.22,3005.3,3005.2,34.85396215]
[1752214356619,2.22,3005.3,3005.2,49.15013365]
[1752214356833,2.22,3005.3,3005.2,48.70157115]
[1752214357255,1.11,3005.9,3005.7,0.55]
[1752214357453,1.11,3005.9,3005.8,33.50383116]
[1752214357639,1.11,3005.9,3005.8,33.47056215]
[1752214358055,1.11,3005.9,3005.8,22.7638]
[1752214358366,1.11,3005.9,3005.8,22.2138]
[1752214358732,2.22,3005.9,3005.8,22.2138]
[1752214359263,2.22,3005.9,3005.8,22.2118]
[1752214359937,2.22,3005.9,3005.8,20.72]
[1752214361270,3.33,3005.9,3005.8,20.72]
[1752214361733,3.33,3005.9,3005.8,22.763]
[1752214362184,3.331,3005.9,3005.8,22.763]
[1752214362350,3.331,3005.9,3005.8,23.2115625]
[1752214362734,3.331,3005.9,3005.8,25.1985625]
[1752214362935,3.331,3005.9,3005.8,31.172446]
[1752214363343,3.331,3005.9,3005.8,25.62496]
[1752214363558,4.441,3005.9,3005.8,26.270966]
[1752214363732,4.441,3005.9,3005.8,26.7195285]
[1752214364568,4.441,3005.9,3005.8,26.8851285]
[1752214365172,4.27495049,3005.9,3005.8,55.3641625]
[1752214365371,0.001,3006.3,3006.2,1.4193]
[1752214365674,1.111,3006.4,3006.3,20.149648]
[1752214365856,0.94495049,3006.4,3006.3,19.872397]
[1752214366060,0.94495049,3006.4,3006.3,17.490248]
[1752214366265,0.94495049,3006.4,3006.3,13.9563]
[1752214366655,0.94495049,3006.4,3006.3,19.815248]
[1752214367257,0.77890098,3006.4,3006.3,28.505557]
[1752214367743,0.61285147,3006.4,3006.3,28.505557]
[1752214368062,7.43471899,3006.7,3006.4,38.721568]
[1752214368272,1.11,3008.0,3006.8,42.537]
[1752214368487,1.11,3008.0,3007.4,10.55]
[1752214368676,1.11,3008.0,3007.6,10.55]
[1752214368840,1.11,3008.0,3007.7,23.91224799]
[1752214369039,1.11,3008.0,3007.7,23.879]
[1752214369435,1.11,3008.0,3007.7,25.2983]
[1752214369836,1.11,3008.0,3007.7,23.57393963]
[1752214370073,2.6406,3008.0,3007.7,23.57393963]
[1752214370589,2.22,3007.8,3007.7,23.57393963]
[1752214371073,2.22,3007.8,3007.7,23.57293963]
[1752214372973,3.33,3007.8,3007.7,23.57293963]
[1752214375405,4.44,3007.8,3007.7,23.57293963]
[1752214375600,4.44,3007.8,3007.7,23.73853963]
[1752214376719,4.44,3007.8,3007.7,18.38253963]
[1752214376926,4.44,3007.8,3007.7,23.73753963]
[1752214377315,4.99139757,3007.8,3007.7,18.38253963]
[1752214377646,4.99139757,3007.8,3007.7,13.73753963]
[1752214377927,6.10139757,3007.8,3007.7,13.73753963]
[1752214378096,6.10139757,3007.8,3007.7,23.73753963]
[1752214380033,5.55,3007.8,3007.7,23.73753963]
[1752214380228,6.66,3007.8,3007.7,23.73753963]
[1752214381601,6.66,3007.8,3007.7,24.18610213]
[1752214381830,6.66,3007.8,3007.7,18.38253963]
[1752214381998,6.66,3007.8,3007.7,23.73653963]
[1752214382710,7.77,3007.8,3007.7,25.66220213]
[1752214382911,7.77,3007.8,3007.7,19.85963963]
[1752214383134,7.77,3007.8,3007.7,25.76363963]
[1752214383707,7.77,3007.8,3007.7,25.21363963]
[1752214384117,7.77,3007.8,3007.7,23.73653963]
[1752214384838,7.771,3007.8,3007.7,23.73653963]
[1752214385020,8.881,3007.8,3007.7,23.73653963]
[1752214385223,8.881,3007.8,3007.7,18.38253963]
[1752214385428,8.881,3007.8,3007.7,23.73653963]
[1752214385625,8.881,3007.8,3007.7,25.76363963]
[1752214386102,8.881,3007.8,3007.7,20.40963963]
[1752214386298,8.881,3007.8,3007.7,25.21263963]
[1752214387435,8.881,3007.8,3007.7,23.73553963]
[1752214387636,9.991,3007.8,3007.7,23.73553963]
[1752214388407,9.991,3007.8,3007.7,18.38253963]
[1752214388609,9.991,3007.8,3007.7,23.73553963]
[1752214389227,9.991,3007.8,3007.7,18.38253963]
[1752214389548,9.991,3007.8,3007.7,23.73453963]
[1752214390111,11.101,3007.8,3007.7,23.73453963]
[1752214390333,11.101,3007.8,3007.7,18.38253963]
[1752214390643,11.101,3007.8,3007.7,23.73453963]
[1752214392058,11.101,3007.8,3007.7,23.56893963]
[1752214392426,12.211,3007.8,3007.7,23.56893963]
[1752214393028,12.211,3007.8,3007.7,18.21693963]
[1752214393364,12.211,3007.8,3007.7,23.56893963]
[1752214393660,14.59257234,3007.8,3007.7,18.21693963]
[1752214393859,14.59257234,3007.8,3007.7,23.56893963]
[1752214394063,14.59257234,3007.8,3007.7,15.5514389]
[1752214394225,14.59257234,3007.8,3007.7,10.1994389]
[1752214394424,14.59257234,3007.8,3007.7,0.1994389]
[1752214394659,14.59257234,3007.8,3007.6,7.968]
[1752214394861,1.49250981,3007.7,3007.6,7.968]
[1752214395029,1.49250981,3007.7,3007.6,23.5658053]
[1752214395230,1.45925723,3007.7,3007.6,23.5658053]
[1752214396326,1.49250981,3007.7,3007.6,23.5658053]
[1752214396526,1.49250981,3007.7,3007.6,13.5648053]
[1752214396958,1.49250981,3007.7,3007.6,17.968]
[1752214397136,2.99150981,3007.7,3007.6,13.319]
[1752214397456,4.10150981,3007.7,3007.6,13.319]
[1752214397643,4.10150981,3007.7,3006.1,1.5871]
[1752214397644,1.499,3007.6,3006.5,7.968]
[1752214397826,1.499,3007.4,3006.6,5.352]
[1752214398023,1.499,3007.2,3006.5,8.2172165]
[1752214398223,1.499,3007.0,3006.6,5.351]
[1752214398453,1.499,3007.0,3006.5,8.2172165]
[1752214398454,1.499,3007.0,3006.7,5.351]
[1752214398654,1.499,3007.0,3006.5,8.2172165]
[1752214398655,1.499,3007.0,3006.6,10.0]
[1752214398858,1.499,3007.0,3006.7,5.351]
[1752214399063,0.03325258,3006.9,3006.5,8.2172165]
[1752214399244,1.499,3006.8,3006.6,5.351]
[1752214399442,1.499,3006.8,3006.7,10.0]
[1752214399780,1.11,3006.8,3006.7,10.0]
[1752214400837,1.11,3006.8,3006.6,5.351]
[1752214401038,1.11,3006.8,3006.7,10.0]
[1752214401745,1.11,3006.8,3006.7,5.902]
[1752214401930,1.11,3006.8,3006.7,5.5176]
[1752214402130,2.22,3006.8,3006.7,5.5176]
[1752214402366,2.22,3006.8,3006.7,6.10085905]
[1752214402575,2.22,3006.8,3006.7,8.0546]
[1752214402757,2.05392732,3006.8,3006.7,23.5229]
[1752214402935,1.11,3007.7,3007.1,1.5331]
[1752214403136,1.11,3007.7,3007.2,5.352]
[1752214403339,1.11,3007.7,3007.6,0.1656]
[1752214403552,1.11,3007.7,3007.6,15.5176]
[1752214404538,2.22,3007.7,3007.6,10.1656]
[1752214404737,2.22,3007.7,3007.6,15.5176]
[1752214405096,3.7963,3007.7,3007.6,15.5176]
[1752214405439,3.7963,3007.7,3007.6,10.1656]
[1752214405640,5.54128258,3007.7,3006.4,1.6233]
[1752214405941,5.70688258,3007.7,3007.2,0.1656]
[1752214406143,1.612,3007.6,3007.2,0.1656]
[1752214406369,1.612,3007.6,3006.6,0.002]
[1752214406370,1.612,3007.4,3007.3,5.351]
[1752214406869,1.612,3007.4,3007.3,15.351]
[1752214407063,2.722,3007.4,3007.3,15.351]
[1752214408792,3.01408526,3007.4,3007.3,15.351]
[1752214409585,4.12408526,3007.4,3007.3,10.0]
[1752214410084,4.12408526,3007.4,3007.3,15.351]
[1752214410492,1.5935,3007.3,3006.8,0.1656]
[1752214410674,0.44381111,3007.2,3007.0,10.0]
[1752214410869,0.1656,3007.0,3006.6,0.002]
[1752214411183,0.03325258,3006.9,3006.8,10.0]
[1752214411390,0.03325258,3006.9,3006.8,5.351]
[1752214411702,0.03325258,3006.9,3006.6,0.002]
[1752214411854,2.68145258,3006.9,3006.7,5.35]
[1752214412062,2.68145258,3006.9,3006.8,10.0]
[1752214412556,2.6482,3006.9,3006.8,10.0]
[1752214413787,1.11,3006.9,3006.8,10.0]
[1752214414086,1.11,3006.9,3006.8,10.1656]
[1752214414285,2.22,3006.9,3006.8,10.0]
[1752214414853,2.22,3006.9,3006.8,10.1656]
[1752214416790,3.33,3006.9,3006.8,10.1656]
[1752214419307,4.44,3006.9,3006.8,10.1656]
[1752214420772,4.44,3006.9,3006.8,5.5146]
[1752214420773,5.96,3006.9,3006.8,5.5146]
[1752214420972,5.96,3006.9,3006.8,5.349]
[1752214421399,5.96,3006.9,3006.7,0.1656]
[1752214421705,5.96,3006.9,3006.8,5.349]
[1752214421903,7.07,3006.9,3006.8,5.349]
[1752214422704,7.07,3006.9,3006.8,15.349]
[1752214423009,5.55,3006.9,3006.8,15.349]
[1752214424106,5.55,3006.9,3006.8,10.0]
[1752214424408,6.69325258,3006.9,3006.8,15.349]
[1752214424905,6.69325258,3006.9,3006.8,10.0]
[1752214425114,7.37913784,3006.9,3006.8,15.349]
[1752214426785,8.48913784,3006.9,3006.8,15.349]
[1752214426985,8.45588526,3006.9,3006.8,15.349]
[1752214427607,10.06838526,3006.9,3006.6,0.002]
[1752214427808,1.02339853,3006.8,3006.7,5.348]
[1752214428007,1.02339853,3006.8,3006.7,15.348]
[1752214428207,9.3825,3006.9,3006.7,15.348]
[1752214428408,9.3825,3006.9,3006.8,10.002]
[1752214428631,9.3825,3006.9,3006.8,0.002]
[1752214429398,10.4925,3006.9,3006.8,0.002]
[1752214431814,11.6025,3006.9,3006.8,0.002]
[1752214434111,9.99,3006.9,3006.8,0.002]
[1752214434316,11.1,3006.9,3006.8,0.1676]
[1752214434633,11.1,3006.9,3006.8,0.002]
[1752214436241,11.1,3006.9,3006.8,0.1676]
[1752214436740,11.1,3006.9,3006.8,5.5136]
[1752214437039,12.21,3006.9,3006.8,5.5136]
[1752214437425,13.431,3006.9,3006.8,5.5136]
[1752214437638,13.431,3006.9,3006.8,5.348]
[1752214439237,12.21,3006.9,3006.8,15.348]
[1752214439539,13.32,3006.9,3006.8,15.348]
[1752214441932,14.43,3006.9,3006.8,15.348]
[1752214444559,15.54,3006.9,3006.8,15.348]
[1752214446882,15.54,3006.9,3006.8,10.002]
[1752214447049,19.71216,3006.9,3006.8,0.002]